[Event "Early-Titled-Tuesday-Blitz-February-06-2024"]
[Site "Chess.com"]
[Date "2024.02.06"]
[Round "3"]
[White "KorolDimitriy75"]
[Black "boguszp"]
[Result "1-0"]
[WhiteElo "2368"]
[BlackElo "2056"]
[TimeControl "180+1"]
[EndTime "8:27:31 PST"]
[Termination "KorolDimitriy75 won by resignation"]

1. d4 {[%clk 0:03:00.9]} 1... d5 {[%clk 0:02:59.8]} 2. c4 {[%clk 0:03:01.1]}
2... c6 {[%clk 0:03:00.3]} 3. Nc3 {[%clk 0:03:01.7]} 3... Nf6 {[%clk 0:03:00.7]}
4. e3 {[%clk 0:03:02.3]} 4... e6 {[%clk 0:03:00.6]} 5. Nf3 {[%clk 0:03:02.9]}
5... Bd6 {[%clk 0:03:00.9]} 6. Bd3 {[%clk 0:03:03.5]} 6... Nbd7 {[%clk
0:03:01.3]} 7. O-O {[%clk 0:03:03.4]} 7... O-O {[%clk 0:03:00.7]} 8. e4 {[%clk
0:03:03.8]} 8... dxe4 {[%clk 0:03:00.2]} 9. Nxe4 {[%clk 0:03:04.7]} 9... Nxe4
{[%clk 0:03:00.3]} 10. Bxe4 {[%clk 0:03:05.6]} 10... f5 {[%clk 0:03:00.1]} 11.
Bc2 {[%clk 0:03:04.4]} 11... e5 {[%clk 0:03:00.3]} 12. dxe5 {[%clk 0:02:19.8]}
12... Nxe5 {[%clk 0:02:59]} 13. b3 {[%clk 0:01:21.7]} 13... Qf6 {[%clk
0:02:45.3]} 14. Rb1 {[%clk 0:01:21]} 14... Be6 {[%clk 0:02:32.1]} 15. Qxd6
{[%clk 0:01:16]} 15... Nxf3+ {[%clk 0:02:29.9]} 16. gxf3 {[%clk 0:01:16.9]}
16... Rad8 {[%clk 0:02:23.2]} 17. Qf4 {[%clk 0:00:59.5]} 17... Rd4 {[%clk
0:02:18.6]} 18. Qg5 {[%clk 0:00:54]} 18... Qxg5+ {[%clk 0:02:08.6]} 19. Bxg5
{[%clk 0:00:54.9]} 19... h6 {[%clk 0:02:05.6]} 20. Be3 {[%clk 0:00:51.7]} 20...
Rd7 {[%clk 0:02:01.4]} 21. f4 {[%clk 0:00:48.5]} 21... b6 {[%clk 0:01:58.4]} 22.
Rbd1 {[%clk 0:00:45.6]} 22... Rfd8 {[%clk 0:01:55.6]} 23. Rxd7 {[%clk
0:00:44.3]} 23... Rxd7 {[%clk 0:01:56]} 24. Rd1 {[%clk 0:00:44.5]} 24... Rxd1+
{[%clk 0:01:53.3]} 25. Bxd1 {[%clk 0:00:45.4]} 25... c5 {[%clk 0:01:53.4]} 26.
Bf3 {[%clk 0:00:42.5]} 26... Kf7 {[%clk 0:01:52.5]} 27. Kf1 {[%clk 0:00:37.9]}
27... Kf6 {[%clk 0:01:50.3]} 28. Ke2 {[%clk 0:00:37.2]} 28... g5 {[%clk
0:01:50.7]} 29. Kd3 {[%clk 0:00:32.1]} 29... g4 {[%clk 0:01:45.4]} 30. Bg2
{[%clk 0:00:29]} 30... h5 {[%clk 0:01:43.9]} 31. Bd2 {[%clk 0:00:20.6]} 31...
Ke7 {[%clk 0:01:42.3]} 32. Bc3 {[%clk 0:00:20.6]} 32... a5 {[%clk 0:01:34.6]}
33. Be5 {[%clk 0:00:20.9]} 33... Kd7 {[%clk 0:01:34.5]} 34. a4 {[%clk
0:00:19.9]} 34... h4 {[%clk 0:01:32.1]} 35. Bd5 {[%clk 0:00:17.5]} 35... h3
{[%clk 0:01:21.4]} 36. Bxe6+ {[%clk 0:00:17]} 36... Kxe6 {[%clk 0:01:21.9]} 37.
Bc7 {[%clk 0:00:16.6]} 37... Kd7 {[%clk 0:01:14]} 38. Bxb6 {[%clk 0:00:16.4]}
38... Kc6 {[%clk 0:01:14.2]} 39. Bxa5 {[%clk 0:00:16.4]} 39... Kb7 {[%clk
0:01:13.7]} 40. Bd2 {[%clk 0:00:16]} 40... Ka6 {[%clk 0:01:11.2]} 41. Be3 {[%clk
0:00:15.2]} 41... Kb6 {[%clk 0:01:10.8]} 42. b4 {[%clk 0:00:15.2]} 42... Kc6
{[%clk 0:01:09.1]} 43. Bxc5 {[%clk 0:00:15.2]} 43... Kd7 {[%clk 0:01:07.7]} 44.
Kd4 {[%clk 0:00:15.1]} 44... Kc6 {[%clk 0:01:07.7]} 45. b5+ {[%clk 0:00:14.5]}
45... Kc7 {[%clk 0:01:07]} 46. a5 {[%clk 0:00:15.1]} 46... Kd7 {[%clk
0:01:06.5]} 47. Ke5 {[%clk 0:00:15]} 47... g3 {[%clk 0:01:04.2]} 48. fxg3 {[%clk
0:00:15.9]} 48... Kc7 {[%clk 0:01:03.2]} 49. Kxf5 {[%clk 0:00:16.3]} 49... Kd7
{[%clk 0:01:02]} 50. Ke5 {[%clk 0:00:16.6]} 50... Kc7 {[%clk 0:01:01.3]} 51. f5
{[%clk 0:00:17]} 51... Kd7 {[%clk 0:01:01.3]} 52. f6 {[%clk 0:00:17.5]} 52...
Ke8 {[%clk 0:01:01.4]} 53. Ke6 {[%clk 0:00:17.4]} 1-0

[Event "Early-Titled-Tuesday-Blitz-February-06-2024"]
[Site "Chess.com"]
[Date "2024.02.06"]
[Round "3"]
[White "iwanyu"]
[Black "guillembaches"]
[Result "1-0"]
[WhiteElo "2777"]
[BlackElo "2561"]
[TimeControl "180+1"]
[EndTime "8:27:34 PST"]
[Termination "iwanyu won on time"]

1. d4 {[%clk 0:03:00.9]} 1... d5 {[%clk 0:03:00.6]} 2. c4 {[%clk 0:03:00.6]}
2... e6 {[%clk 0:03:01.3]} 3. Nf3 {[%clk 0:03:01.1]} 3... a6 {[%clk 0:03:01.7]}
4. Bg5 {[%clk 0:03:00.6]} 4... Be7 {[%clk 0:03:00.7]} 5. Bxe7 {[%clk 0:03:00.7]}
5... Qxe7 {[%clk 0:03:01]} 6. Nbd2 {[%clk 0:03:00.9]} 6... Nf6 {[%clk
0:02:57.8]} 7. g3 {[%clk 0:02:59.9]} 7... dxc4 {[%clk 0:02:52.9]} 8. Nxc4 {[%clk
0:02:57]} 8... Qb4+ {[%clk 0:02:44.9]} 9. Nfd2 {[%clk 0:02:56.1]} 9... b5 {[%clk
0:02:25.5]} 10. a3 {[%clk 0:02:50.5]} 10... Qe7 {[%clk 0:02:21.6]} 11. Na5
{[%clk 0:02:49.8]} 11... O-O {[%clk 0:02:11.3]} 12. Bg2 {[%clk 0:02:48.9]} 12...
Nd5 {[%clk 0:02:11.3]} 13. O-O {[%clk 0:02:43.7]} 13... c5 {[%clk 0:02:03.4]}
14. dxc5 {[%clk 0:02:32.8]} 14... Qxc5 {[%clk 0:02:01.9]} 15. Rc1 {[%clk
0:02:32.3]} 15... Qb6 {[%clk 0:01:58.9]} 16. Ndb3 {[%clk 0:02:31.4]} 16... Bd7
{[%clk 0:01:41.8]} 17. Qd4 {[%clk 0:02:16.4]} 17... Qxd4 {[%clk 0:01:21.1]} 18.
Nxd4 {[%clk 0:02:17.3]} 18... Ra7 {[%clk 0:01:21]} 19. Bxd5 {[%clk 0:02:05.7]}
19... exd5 {[%clk 0:01:20.8]} 20. Rc5 {[%clk 0:02:05.4]} 20... Be6 {[%clk
0:01:11.1]} 21. Rfc1 {[%clk 0:02:00.3]} 21... Rd7 {[%clk 0:01:10.5]} 22. Nac6
{[%clk 0:01:55.4]} 22... Rd6 {[%clk 0:00:55.2]} 23. Nxb8 {[%clk 0:01:52.2]}
23... Rxb8 {[%clk 0:00:54.9]} 24. b4 {[%clk 0:01:47.4]} 24... Bd7 {[%clk
0:00:43]} 25. Rc7 {[%clk 0:01:43.6]} 25... Kf8 {[%clk 0:00:39.4]} 26. Ra7 {[%clk
0:01:40.1]} 26... Rc8 {[%clk 0:00:33.9]} 27. Rc5 {[%clk 0:01:20.4]} 27... Ke8
{[%clk 0:00:22]} 28. f3 {[%clk 0:01:14.8]} 28... h5 {[%clk 0:00:20.3]} 29. h4
{[%clk 0:01:13.7]} 29... g6 {[%clk 0:00:20.6]} 30. Kf2 {[%clk 0:01:13.6]} 30...
Kd8 {[%clk 0:00:20.9]} 31. Ke3 {[%clk 0:01:09.7]} 31... Be8 {[%clk 0:00:16.3]}
32. Rxc8+ {[%clk 0:01:04.7]} 32... Kxc8 {[%clk 0:00:17.2]} 33. Ra8+ {[%clk
0:01:03.8]} 33... Kd7 {[%clk 0:00:17.6]} 34. Nb3 {[%clk 0:01:03.9]} 34... Ke7
{[%clk 0:00:16.9]} 35. Nc5 {[%clk 0:01:02.1]} 35... f6 {[%clk 0:00:16.5]} 36.
Nxa6 {[%clk 0:01:00.9]} 36... g5 {[%clk 0:00:16.5]} 37. Kd4 {[%clk 0:00:57]}
37... Re6 {[%clk 0:00:11.6]} 38. Nc7 {[%clk 0:00:44.7]} 38... gxh4 {[%clk
0:00:01.3]} 39. gxh4 {[%clk 0:00:40]} 1-0

[Event "Early-Titled-Tuesday-Blitz-February-06-2024"]
[Site "Chess.com"]
[Date "2024.02.06"]
[Round "3"]
[White "valeriocarnicelli"]
[Black "Viktor_Poddubnyi"]
[Result "1-0"]
[WhiteElo "2539"]
[BlackElo "2265"]
[TimeControl "180+1"]
[EndTime "8:27:34 PST"]
[Termination "valeriocarnicelli won by checkmate"]

1. e4 {[%clk 0:03:00.9]} 1... g6 {[%clk 0:03:00.2]} 2. d4 {[%clk 0:03:00.8]}
2... Bg7 {[%clk 0:03:00.6]} 3. Nc3 {[%clk 0:03:01.1]} 3... d6 {[%clk 0:03:01.1]}
4. Nf3 {[%clk 0:02:59.2]} 4... Nf6 {[%clk 0:03:00.7]} 5. h3 {[%clk 0:02:58.9]}
5... c6 {[%clk 0:03:00]} 6. Be3 {[%clk 0:02:57.8]} 6... O-O {[%clk 0:02:58.2]}
7. Bd3 {[%clk 0:02:57.8]} 7... b5 {[%clk 0:02:56.5]} 8. O-O {[%clk 0:02:56.1]}
8... b4 {[%clk 0:02:55.4]} 9. Ne2 {[%clk 0:02:56]} 9... a5 {[%clk 0:02:55.2]}
10. c3 {[%clk 0:02:53.7]} 10... Ba6 {[%clk 0:02:44.9]} 11. a3 {[%clk 0:02:53.2]}
11... bxc3 {[%clk 0:02:35.3]} 12. bxc3 {[%clk 0:02:53.1]} 12... Bxd3 {[%clk
0:02:25.8]} 13. Qxd3 {[%clk 0:02:54]} 13... d5 {[%clk 0:02:26.1]} 14. e5 {[%clk
0:02:51.4]} 14... Ne4 {[%clk 0:02:26.3]} 15. Ng3 {[%clk 0:02:49.3]} 15... Nxg3
{[%clk 0:02:13.6]} 16. fxg3 {[%clk 0:02:50.2]} 16... e6 {[%clk 0:01:51.5]} 17.
Qd2 {[%clk 0:02:49.1]} 17... Nd7 {[%clk 0:01:43.7]} 18. Bh6 {[%clk 0:02:40.9]}
18... c5 {[%clk 0:01:42.3]} 19. Nh2 {[%clk 0:02:18.5]} 19... f5 {[%clk
0:01:19.1]} 20. g4 {[%clk 0:02:06.9]} 20... cxd4 {[%clk 0:01:01.8]} 21. cxd4
{[%clk 0:02:06.9]} 21... Nb6 {[%clk 0:00:55]} 22. gxf5 {[%clk 0:02:01.3]} 22...
exf5 {[%clk 0:00:55.9]} 23. Bxg7 {[%clk 0:01:54.6]} 23... Kxg7 {[%clk
0:00:55.4]} 24. Rab1 {[%clk 0:01:53.8]} 24... Nc4 {[%clk 0:00:52.5]} 25. Rb7+
{[%clk 0:01:53.7]} 25... Rf7 {[%clk 0:00:45.5]} 26. Rxf7+ {[%clk 0:01:53.7]}
26... Kxf7 {[%clk 0:00:46.4]} 27. Qh6 {[%clk 0:01:54.1]} 27... Kg8 {[%clk
0:00:46.7]} 28. Nf3 {[%clk 0:01:47.8]} 28... Rb8 {[%clk 0:00:43.4]} 29. Ng5
{[%clk 0:01:42.9]} 29... Qe7 {[%clk 0:00:43]} 30. g4 {[%clk 0:01:34.5]} 30...
Ne3 {[%clk 0:00:16.5]} 31. gxf5 {[%clk 0:01:34.9]} 31... Nxf5 {[%clk 0:00:15.3]}
32. Rxf5 {[%clk 0:01:33.5]} 32... gxf5 {[%clk 0:00:16.2]} 33. h4 {[%clk
0:01:04.1]} 33... Rf8 {[%clk 0:00:16.2]} 34. Qc6 {[%clk 0:00:55.4]} 34... Rd8
{[%clk 0:00:16.3]} 35. a4 {[%clk 0:00:40.9]} 35... Qa3 {[%clk 0:00:11.4]} 36.
Qe6+ {[%clk 0:00:40.3]} 36... Kg7 {[%clk 0:00:10.4]} 37. Qf6+ {[%clk 0:00:39.4]}
37... Kg8 {[%clk 0:00:09.8]} 38. Qf7+ {[%clk 0:00:39.8]} 38... Kh8 {[%clk
0:00:09.6]} 39. Qxh7# {[%clk 0:00:40.5]} 1-0

[Event "Early-Titled-Tuesday-Blitz-February-06-2024"]
[Site "Chess.com"]
[Date "2024.02.06"]
[Round "3"]
[White "Talent-OF-Slovenia"]
[Black "jens1102"]
[Result "1-0"]
[WhiteElo "2450"]
[BlackElo "2625"]
[TimeControl "180+1"]
[EndTime "8:27:37 PST"]
[Termination "Talent-OF-Slovenia won by checkmate"]

1. e4 {[%clk 0:03:00.9]} 1... c5 {[%clk 0:02:59.2]} 2. Nf3 {[%clk 0:03:00]} 2...
Nc6 {[%clk 0:02:58.9]} 3. Bb5 {[%clk 0:02:59.7]} 3... g6 {[%clk 0:02:58.2]} 4.
Bxc6 {[%clk 0:02:59]} 4... bxc6 {[%clk 0:02:59.1]} 5. O-O {[%clk 0:02:56.2]}
5... Bg7 {[%clk 0:02:59.3]} 6. Re1 {[%clk 0:02:55.3]} 6... Nh6 {[%clk
0:02:59.8]} 7. c3 {[%clk 0:02:50]} 7... O-O {[%clk 0:02:59.6]} 8. d4 {[%clk
0:02:49]} 8... cxd4 {[%clk 0:03:00]} 9. cxd4 {[%clk 0:02:49.9]} 9... f6 {[%clk
0:02:59.9]} 10. Nc3 {[%clk 0:02:47.5]} 10... Nf7 {[%clk 0:02:59.4]} 11. e5
{[%clk 0:02:46]} 11... d6 {[%clk 0:02:53.4]} 12. exf6 {[%clk 0:02:22.5]} 12...
Bxf6 {[%clk 0:02:51.3]} 13. h3 {[%clk 0:02:20]} 13... e5 {[%clk 0:02:44.7]} 14.
Ne4 {[%clk 0:02:14.7]} 14... exd4 {[%clk 0:02:37.4]} 15. Nxf6+ {[%clk
0:02:13.8]} 15... Qxf6 {[%clk 0:02:37.5]} 16. Qxd4 {[%clk 0:02:10.3]} 16... Ne5
{[%clk 0:02:36.1]} 17. Nxe5 {[%clk 0:02:06.8]} 17... dxe5 {[%clk 0:02:36.4]} 18.
Rxe5 {[%clk 0:02:02]} 18... Bf5 {[%clk 0:01:55.2]} 19. Be3 {[%clk 0:02:00.9]}
19... Rad8 {[%clk 0:01:52.6]} 20. Qc5 {[%clk 0:01:58.9]} 20... Rf7 {[%clk
0:01:44]} 21. Re1 {[%clk 0:01:55.9]} 21... Rfd7 {[%clk 0:01:43.8]} 22. Bh6
{[%clk 0:01:47.9]} 22... Kf7 {[%clk 0:01:43.1]} 23. f4 {[%clk 0:01:43.1]} 23...
Rd1 {[%clk 0:00:45]} 24. Qxa7+ {[%clk 0:01:31.4]} 24... R8d7 {[%clk 0:00:39.3]}
25. Qe3 {[%clk 0:01:25.6]} 25... Rxe1+ {[%clk 0:00:38.4]} 26. Qxe1 {[%clk
0:01:26.5]} 26... Qd6 {[%clk 0:00:34]} 27. Kh2 {[%clk 0:01:23.4]} 27... Re7
{[%clk 0:00:24.5]} 28. Rxe7+ {[%clk 0:01:14.6]} 28... Qxe7 {[%clk 0:00:25.4]}
29. Qxe7+ {[%clk 0:01:14.3]} 29... Kxe7 {[%clk 0:00:26.3]} 30. Bg7 {[%clk
0:01:13.1]} 30... Bb1 {[%clk 0:00:26.2]} 31. a3 {[%clk 0:01:11.8]} 31... Bc2
{[%clk 0:00:26.4]} 32. g4 {[%clk 0:01:10.7]} 32... Ke6 {[%clk 0:00:26.7]} 33.
Kg3 {[%clk 0:01:09]} 33... Kd5 {[%clk 0:00:27.1]} 34. Kh4 {[%clk 0:01:08.5]}
34... Ke4 {[%clk 0:00:24]} 35. Kg5 {[%clk 0:01:07.2]} 35... Kf3 {[%clk 0:00:24]}
36. f5 {[%clk 0:01:01.1]} 36... gxf5 {[%clk 0:00:20.7]} 37. gxf5 {[%clk
0:01:02]} 37... Ke4 {[%clk 0:00:21.3]} 38. f6 {[%clk 0:00:55.8]} 38... Bb3
{[%clk 0:00:20.3]} 39. Kh6 {[%clk 0:00:55.9]} 39... Bg8 {[%clk 0:00:20.9]} 40.
Bf8 {[%clk 0:00:55.8]} 40... Kf5 {[%clk 0:00:20.3]} 41. Kg7 {[%clk 0:00:55.4]}
41... Be6 {[%clk 0:00:20.2]} 42. f7 {[%clk 0:00:54.6]} 42... h5 {[%clk
0:00:19.6]} 43. Bc5 {[%clk 0:00:54.2]} 43... Bxf7 {[%clk 0:00:16.5]} 44. Kxf7
{[%clk 0:00:55.1]} 44... Ke5 {[%clk 0:00:12.9]} 45. b4 {[%clk 0:00:55.3]} 45...
Kd5 {[%clk 0:00:13.1]} 46. a4 {[%clk 0:00:55.9]} 46... Kc4 {[%clk 0:00:13]} 47.
a5 {[%clk 0:00:56.8]} 47... Kb5 {[%clk 0:00:13.4]} 48. Kf6 {[%clk 0:00:57.7]}
48... Ka6 {[%clk 0:00:13.6]} 49. Kg5 {[%clk 0:00:58.4]} 49... Kb5 {[%clk
0:00:14.5]} 50. Kh4 {[%clk 0:00:59.3]} 50... Ka6 {[%clk 0:00:15.4]} 51. Kxh5
{[%clk 0:01:00.2]} 51... Kb5 {[%clk 0:00:16.3]} 52. Kg5 {[%clk 0:01:00.7]} 52...
Ka6 {[%clk 0:00:17.2]} 53. h4 {[%clk 0:01:01.6]} 53... Kb5 {[%clk 0:00:18.1]}
54. h5 {[%clk 0:01:02.1]} 54... Ka6 {[%clk 0:00:19]} 55. h6 {[%clk 0:01:02.5]}
55... Kb5 {[%clk 0:00:19.9]} 56. h7 {[%clk 0:01:02.8]} 56... Ka6 {[%clk
0:00:20.8]} 57. h8=Q {[%clk 0:01:02.9]} 57... Kb5 {[%clk 0:00:21.7]} 58. Qb8+
{[%clk 0:01:00.5]} 58... Ka6 {[%clk 0:00:22.6]} 59. Qb6# {[%clk 0:01:01]} 1-0

[Event "Early-Titled-Tuesday-Blitz-February-06-2024"]
[Site "Chess.com"]
[Date "2024.02.06"]
[Round "3"]
[White "Anton_Demchenko"]
[Black "Ginger_GM"]
[Result "1-0"]
[WhiteElo "2891"]
[BlackElo "2681"]
[TimeControl "180+1"]
[EndTime "8:27:39 PST"]
[Termination "Anton_Demchenko won on time"]

1. e4 {[%clk 0:03:00.9]} 1... c5 {[%clk 0:02:51.4]} 2. Nc3 {[%clk 0:02:59.9]}
2... Nc6 {[%clk 0:02:50.4]} 3. Bb5 {[%clk 0:03:00.4]} 3... Nd4 {[%clk
0:02:48.7]} 4. a4 {[%clk 0:03:00.5]} 4... g6 {[%clk 0:02:46.4]} 5. Nge2 {[%clk
0:02:59.9]} 5... Bg7 {[%clk 0:02:46.4]} 6. d3 {[%clk 0:03:00.5]} 6... a6 {[%clk
0:02:37.5]} 7. Bc4 {[%clk 0:02:59.7]} 7... e6 {[%clk 0:02:37.7]} 8. h4 {[%clk
0:02:58.6]} 8... h6 {[%clk 0:02:32.2]} 9. h5 {[%clk 0:02:57.5]} 9... g5 {[%clk
0:02:31.9]} 10. f4 {[%clk 0:02:58]} 10... gxf4 {[%clk 0:02:31.9]} 11. Bxf4
{[%clk 0:02:57.4]} 11... d6 {[%clk 0:02:17.8]} 12. Nxd4 {[%clk 0:02:45.3]} 12...
cxd4 {[%clk 0:02:15.7]} 13. Ne2 {[%clk 0:02:45.8]} 13... Ne7 {[%clk 0:02:14.4]}
14. Qd2 {[%clk 0:02:34.7]} 14... d5 {[%clk 0:02:09.3]} 15. Bb3 {[%clk
0:02:34.3]} 15... dxe4 {[%clk 0:02:05.9]} 16. dxe4 {[%clk 0:02:35.2]} 16... Nc6
{[%clk 0:02:05.7]} 17. O-O-O {[%clk 0:02:13.3]} 17... b5 {[%clk 0:01:41.3]} 18.
e5 {[%clk 0:01:52]} 18... Nxe5 {[%clk 0:01:23.5]} 19. Nxd4 {[%clk 0:01:51.7]}
19... Nc4 {[%clk 0:01:02.4]} 20. Bxc4 {[%clk 0:00:51.2]} 20... bxc4 {[%clk
0:01:01.8]} 21. Qe3 {[%clk 0:00:49.2]} 21... Qb6 {[%clk 0:00:57.5]} 22. c3
{[%clk 0:00:35]} 22... Bd7 {[%clk 0:00:54.8]} 23. Be5 {[%clk 0:00:26.8]} 23...
f6 {[%clk 0:00:47]} 24. Qg3 {[%clk 0:00:26]} 24... O-O {[%clk 0:00:28]} 25. Bf4
{[%clk 0:00:20.5]} 25... Kh8 {[%clk 0:00:20.8]} 26. Nf5 {[%clk 0:00:17.2]} 26...
Rf7 {[%clk 0:00:10.5]} 27. Qg6 {[%clk 0:00:13.9]} 27... Be8 {[%clk 0:00:03.8]}
28. Nxg7 {[%clk 0:00:11.8]} 28... Rxg7 {[%clk 0:00:01.4]} 29. Qxf6 {[%clk
0:00:12.4]} 1-0

[Event "Early-Titled-Tuesday-Blitz-February-06-2024"]
[Site "Chess.com"]
[Date "2024.02.06"]
[Round "3"]
[White "Arimin1329"]
[Black "blitzking1729"]
[Result "0-1"]
[WhiteElo "2421"]
[BlackElo "2734"]
[TimeControl "180+1"]
[EndTime "8:27:39 PST"]
[Termination "blitzking1729 won by resignation"]

1. Nf3 {[%clk 0:03:00.9]} 1... d5 {[%clk 0:02:57.4]} 2. g3 {[%clk 0:03:00.2]}
2... Nd7 {[%clk 0:02:55.1]} 3. Bg2 {[%clk 0:03:00.5]} 3... e5 {[%clk 0:02:48.3]}
4. d3 {[%clk 0:03:00.5]} 4... Ngf6 {[%clk 0:02:47.1]} 5. O-O {[%clk 0:03:01]}
5... Bc5 {[%clk 0:02:45.9]} 6. Nbd2 {[%clk 0:02:59.6]} 6... O-O {[%clk
0:02:45.6]} 7. e4 {[%clk 0:02:59]} 7... c6 {[%clk 0:02:45.3]} 8. c3 {[%clk
0:02:58]} 8... Re8 {[%clk 0:02:45.4]} 9. Qc2 {[%clk 0:02:57.9]} 9... Bf8 {[%clk
0:02:43]} 10. Re1 {[%clk 0:02:56.9]} 10... a5 {[%clk 0:02:42.6]} 11. Nf1 {[%clk
0:02:52.8]} 11... Qc7 {[%clk 0:02:34.5]} 12. Bg5 {[%clk 0:02:46.8]} 12... h6
{[%clk 0:02:06]} 13. Bxf6 {[%clk 0:02:35.2]} 13... Nxf6 {[%clk 0:02:06.9]} 14.
Ne3 {[%clk 0:02:23.5]} 14... dxe4 {[%clk 0:01:57.6]} 15. dxe4 {[%clk 0:02:24.4]}
15... Be6 {[%clk 0:01:58]} 16. a4 {[%clk 0:02:12.7]} 16... Bc5 {[%clk 0:01:40]}
17. Nd2 {[%clk 0:02:04]} 17... Qb6 {[%clk 0:01:25.9]} 18. Ndc4 {[%clk
0:02:01.5]} 18... Qc7 {[%clk 0:01:18.6]} 19. Nd2 {[%clk 0:01:57.5]} 19... Rad8
{[%clk 0:01:13.7]} 20. Rad1 {[%clk 0:01:50.6]} 20... Bf8 {[%clk 0:00:42.2]} 21.
Ndc4 {[%clk 0:01:41]} 21... Nd7 {[%clk 0:00:42]} 22. Kh1 {[%clk 0:01:23.1]}
22... Nc5 {[%clk 0:00:40.6]} 23. f3 {[%clk 0:01:18.8]} 23... b5 {[%clk
0:00:40.2]} 24. axb5 {[%clk 0:01:11.7]} 24... cxb5 {[%clk 0:00:33.4]} 25. Rxd8
{[%clk 0:01:00.3]} 25... Rxd8 {[%clk 0:00:31.4]} 26. Nd2 {[%clk 0:01:00.6]}
26... Nd3 {[%clk 0:00:28.7]} 27. Ra1 {[%clk 0:00:56]} 27... Qb6 {[%clk
0:00:27.8]} 28. Nd1 {[%clk 0:00:46.7]} 28... Ne1 {[%clk 0:00:19]} 29. Qc1 {[%clk
0:00:40.9]} 29... b4 {[%clk 0:00:11.7]} 30. Nf1 {[%clk 0:00:32.7]} 30... b3
{[%clk 0:00:10.4]} 31. Nde3 {[%clk 0:00:30.1]} 31... Nd3 {[%clk 0:00:10.6]} 32.
h4 {[%clk 0:00:24.6]} 32... Bc5 {[%clk 0:00:10.3]} 33. Kh2 {[%clk 0:00:23.6]}
33... Nxc1 {[%clk 0:00:10.5]} 0-1

[Event "Early-Titled-Tuesday-Blitz-February-06-2024"]
[Site "Chess.com"]
[Date "2024.02.06"]
[Round "3"]
[White "Orest_Vovk"]
[Black "N_I_Chess"]
[Result "1-0"]
[WhiteElo "2558"]
[BlackElo "2334"]
[TimeControl "180+1"]
[EndTime "8:27:39 PST"]
[Termination "Orest_Vovk won by resignation"]

1. e4 {[%clk 0:02:48.7]} 1... Nf6 {[%clk 0:03:00.3]} 2. Nc3 {[%clk 0:02:45.6]}
2... d5 {[%clk 0:03:00]} 3. exd5 {[%clk 0:02:44.9]} 3... Nxd5 {[%clk 0:03:00.9]}
4. Nxd5 {[%clk 0:02:45]} 4... Qxd5 {[%clk 0:03:01.8]} 5. Qf3 {[%clk 0:02:45.2]}
5... Qxf3 {[%clk 0:02:53.1]} 6. Nxf3 {[%clk 0:02:46.1]} 6... Bf5 {[%clk
0:02:47.1]} 7. c3 {[%clk 0:02:42.9]} 7... Nd7 {[%clk 0:02:28.7]} 8. d4 {[%clk
0:02:40.7]} 8... e6 {[%clk 0:02:28.9]} 9. Bf4 {[%clk 0:02:41]} 9... Bd6 {[%clk
0:02:27.4]} 10. Bxd6 {[%clk 0:02:38.6]} 10... cxd6 {[%clk 0:02:28.3]} 11. O-O-O
{[%clk 0:02:38.9]} 11... Rc8 {[%clk 0:02:18.6]} 12. Bd3 {[%clk 0:02:38.7]} 12...
Bxd3 {[%clk 0:02:12.8]} 13. Rxd3 {[%clk 0:02:39.6]} 13... Nf6 {[%clk 0:02:08.8]}
14. Re1 {[%clk 0:02:37.3]} 14... Kd7 {[%clk 0:01:59.8]} 15. Nd2 {[%clk
0:02:36.1]} 15... b5 {[%clk 0:01:58.4]} 16. Rf3 {[%clk 0:02:35.5]} 16... Rhf8
{[%clk 0:01:52.6]} 17. Kb1 {[%clk 0:02:31.2]} 17... Rc7 {[%clk 0:01:42.6]} 18.
h3 {[%clk 0:02:24.7]} 18... a6 {[%clk 0:01:41.3]} 19. g4 {[%clk 0:02:23.8]}
19... h6 {[%clk 0:01:41]} 20. Rg1 {[%clk 0:02:22.7]} 20... Nd5 {[%clk
0:01:29.2]} 21. g5 {[%clk 0:02:12.7]} 21... hxg5 {[%clk 0:01:14.8]} 22. Rxg5
{[%clk 0:02:13.6]} 22... g6 {[%clk 0:01:12.3]} 23. Rxg6 {[%clk 0:02:12.2]} 23...
fxg6 {[%clk 0:01:00.7]} 24. Rxf8 {[%clk 0:02:10.7]} 24... Kc6 {[%clk 0:01:01.4]}
25. Ne4 {[%clk 0:02:04.5]} 25... Rh7 {[%clk 0:00:59]} 26. Rd8 {[%clk 0:01:55.9]}
26... Rxh3 {[%clk 0:00:40.9]} 27. Rxd6+ {[%clk 0:01:47]} 27... Kc7 {[%clk
0:00:36.7]} 28. Rxe6 {[%clk 0:01:47.1]} 28... Rh1+ {[%clk 0:00:23.2]} 29. Kc2
{[%clk 0:01:45.6]} 29... Re1 {[%clk 0:00:22.3]} 30. Nc5 {[%clk 0:01:33.9]} 30...
Rf1 {[%clk 0:00:20.7]} 31. Nxa6+ {[%clk 0:01:33.5]} 31... Kb7 {[%clk 0:00:20.2]}
32. Nc5+ {[%clk 0:01:33.3]} 32... Kc7 {[%clk 0:00:20.9]} 33. Rxg6 {[%clk
0:01:29.8]} 33... Rxf2+ {[%clk 0:00:21.1]} 34. Kb3 {[%clk 0:01:29.9]} 34... Ne3
{[%clk 0:00:15.9]} 35. Rg3 {[%clk 0:01:15.1]} 35... Nc4 {[%clk 0:00:12.7]} 36.
Nd3 {[%clk 0:01:13.1]} 36... Rd2 {[%clk 0:00:12.4]} 37. a4 {[%clk 0:01:07.8]}
37... Nd6 {[%clk 0:00:02.3]} 38. axb5 {[%clk 0:01:01.2]} 38... Nxb5 {[%clk
0:00:03.2]} 39. Ne5 {[%clk 0:00:54.7]} 39... Nd6 {[%clk 0:00:02.9]} 40. Rg7+
{[%clk 0:00:51.3]} 40... Kb8 {[%clk 0:00:03.2]} 41. c4 {[%clk 0:00:46.6]} 41...
Rxd4 {[%clk 0:00:02]} 42. Nc6+ {[%clk 0:00:46.2]} 1-0